bitfinex-derivatives/quotes_BTCF0:USTF0_20251119
["timestamp","ask_amount","ask_price","bid_price","bid_amount"]
[1763584022264,0.0001681,89252.0,89250.0,0.1721142]
[1763584022470,0.3608,89262.0,89261.0,0.1556277]
[1763584022665,0.3608,89262.0,89261.0,0.1563604]
[1763584022877,0.14864603,89267.0,89261.0,0.1563604]
[1763584022878,0.10856,89267.0,89266.0,0.1556214]
[1763584023080,0.11075799,89267.0,89266.0,0.1563541]
[1763584023281,0.00219799,89267.0,89266.0,0.1563541]
[1763584023782,0.00219799,89267.0,89266.0,0.0442027]
[1763584024480,0.15933819,89267.0,89266.0,0.0442027]
[1763584024686,0.04718799,89267.0,89266.0,0.0442027]
[1763584024988,0.1571502,89259.0,89258.0,0.0436381]
[1763584025167,0.26790819,89259.0,89258.0,0.0443708]
[1763584025977,0.04946603,89265.0,89264.0,0.1556239]
[1763584025978,0.02253,89265.0,89264.0,0.1556239]
[1763584026189,0.00219799,89265.0,89264.0,0.1563566]
[1763584028378,0.00319799,89265.0,89264.0,0.1563566]
[1763584028882,0.00219799,89265.0,89264.0,0.1563566]
[1763584029082,0.00319799,89265.0,89264.0,0.1563566]
[1763584029872,0.001,89265.0,89264.0,0.1563566]
[1763584030072,0.10856,89269.0,89268.0,0.1556189]
[1763584030268,0.10856,89269.0,89268.0,0.1563516]
[1763584030683,0.2207077,89269.0,89268.0,0.0442027]
[1763584030878,0.11075799,89269.0,89268.0,0.0442027]
[1763584031080,0.00219799,89269.0,89268.0,0.0442027]
[1763584031277,0.04008603,89281.0,89280.0,0.04347]
[1763584031484,0.15084402,89281.0,89280.0,0.0442027]
[1763584031687,0.11075799,89281.0,89280.0,0.0442027]
[1763584032680,0.11175799,89281.0,89280.0,0.0442027]
[1763584032981,0.00319799,89281.0,89280.0,0.0442027]
[1763584033978,0.00419799,89281.0,89280.0,0.0442027]
[1763584034683,0.04918799,89281.0,89280.0,0.0442027]
[1763584035583,0.04918799,89281.0,89280.0,0.0007327]
[1763584035888,0.04918799,89281.0,89280.0,0.0442027]
[1763584036083,0.04918799,89281.0,89280.0,0.0231827]
[1763584036386,0.04918799,89281.0,89280.0,0.0442027]
[1763584036887,0.04818799,89281.0,89280.0,0.0442027]
[1763584037085,0.00319799,89281.0,89280.0,0.0576127]
[1763584038190,0.00219799,89281.0,89280.0,0.0576127]
[1763584038588,0.00319799,89281.0,89280.0,0.0576127]
[1763584039086,0.001,89281.0,89280.0,0.0576127]
[1763584039284,0.46936,89301.0,89300.0,0.05169]
[1763584039496,0.46936,89301.0,89300.0,0.1645314]
[1763584039878,0.36299799,89301.0,89300.0,0.1645314]
[1763584040184,0.3608,89309.0,89308.0,0.04347]
[1763584040381,0.36299799,89309.0,89308.0,0.0442027]
[1763584041483,0.36499799,89309.0,89308.0,0.0442027]
[1763584041689,0.36699799,89309.0,89308.0,0.0442027]
[1763584042290,0.38952799,89309.0,89308.0,0.0442027]
[1763584042587,0.05118799,89309.0,89308.0,0.0007327]
[1763584042791,0.05118799,89309.0,89308.0,0.0231827]
[1763584042984,0.05118799,89309.0,89308.0,0.0442027]
[1763584043188,0.00619799,89309.0,89308.0,0.0442027]
[1763584043886,0.00619799,89309.0,89308.0,0.1563014]
[1763584044685,0.05118799,89309.0,89308.0,0.0442027]
[1763584045293,0.05118799,89309.0,89308.0,0.0007327]
[1763584046198,0.00619799,89309.0,89308.0,0.0438727]
[1763584046492,0.05135799,89309.0,89308.0,0.0007327]
[1763584046997,0.05135799,89309.0,89308.0,0.0438727]
[1763584047290,0.004,89309.0,89308.0,0.5167714]
[1763584048191,0.01338,89340.0,89339.0,0.1120598]
[1763584048489,0.01557799,89340.0,89339.0,0.3615327]
[1763584048697,0.06073799,89340.0,89339.0,0.3615327]
[1763584049792,0.06073799,89340.0,89339.0,0.0007327]
[1763584050094,0.04516,89332.0,89331.0,0.00016799]
[1763584050288,0.04735799,89332.0,89331.0,0.00090069]
[1763584050498,0.01438,89340.0,89331.0,0.00090069]
[1763584050688,0.00219799,89339.0,89335.0,0.3608]
[1763584050882,0.04735799,89339.0,89338.0,0.0007327]
[1763584051192,0.00219799,89339.0,89338.0,0.1127937]
[1763584051892,0.02451799,89339.0,89338.0,0.1127937]
[1763584052699,0.04575,89348.0,89347.0,0.1120497]
[1763584052891,0.04794799,89348.0,89347.0,0.1127824]
[1763584053786,0.01338,89350.0,89347.0,0.1127824]
[1763584054189,0.01557799,89350.0,89347.0,0.1127824]
[1763584054390,0.03799799,89350.0,89347.0,0.1127824]
[1763584054692,0.02242,89348.0,89347.0,0.1127824]
[1763584055095,0.01557799,89350.0,89347.0,0.1127824]
[1763584055096,0.01338,89350.0,89347.0,0.1127824]
[1763584055295,0.01338,89350.0,89349.0,0.1120473]
[1763584055492,0.01338,89350.0,89349.0,0.11278]
[1763584056093,0.00219799,89350.0,89349.0,0.0007327]
[1763584056297,0.04794799,89350.0,89349.0,0.1092127]
[1763584057199,0.04794799,89350.0,89349.0,0.0007327]
[1763584057587,0.1120472,89349.0,89345.0,0.3608]
[1763584057896,0.04575,89343.0,89342.0,0.220536]
[1763584058089,0.04794799,89343.0,89342.0,0.2212687]
[1763584058293,0.00219799,89343.0,89342.0,0.2212687]
[1763584058991,0.02461799,89343.0,89342.0,0.2212687]
[1763584059305,0.04794799,89343.0,89342.0,0.2212687]
[1763584060002,0.02461799,89343.0,89342.0,0.2212687]
[1763584060201,0.00219799,89343.0,89342.0,0.2212687]
[1763584060388,0.05857,89353.0,89352.0,0.1120435]
[1763584060700,0.06076799,89353.0,89352.0,0.1127762]
[1763584061499,0.03743799,89353.0,89352.0,0.1127762]
[1763584061703,0.06176799,89353.0,89352.0,0.1127762]
[1763584062296,0.01382,89353.0,89352.0,0.1127762]
[1763584062496,0.01382,89353.0,89352.0,0.2212562]
[1763584063104,0.03843799,89353.0,89352.0,0.2212562]
[1763584063304,0.06176799,89353.0,89352.0,0.1127762]
[1763584063494,0.06176799,89353.0,89352.0,0.0007327]
[1763584065603,0.04575,89336.0,89335.0,0.3608]
[1763584065902,0.16001159,89336.0,89335.0,0.3615327]
[1763584066107,0.04794799,89336.0,89335.0,0.0007327]
[1763584066305,0.04575,89332.0,89329.0,0.112072]
[1763584066510,0.04794799,89332.0,89331.0,0.00090069]
[1763584068201,0.01282,89340.0,89331.0,0.00090069]
[1763584068202,0.01282,89340.0,89339.0,0.1120598]
[1763584068398,0.01282,89340.0,89339.0,0.4735925]
[1763584068399,0.01501799,89340.0,89339.0,0.4735925]
[1763584068598,0.01282,89340.0,89339.0,0.4735925]
[1763584068900,0.01501799,89340.0,89339.0,0.4735925]
[1763584069306,0.01282,89340.0,89339.0,0.4735925]
[1763584069704,0.01382,89340.0,89339.0,0.4735925]
[1763584070911,0.01382,89340.0,89339.0,0.5820325]
[1763584071304,0.01601799,89340.0,89339.0,0.5820325]
[1763584071504,0.03843799,89340.0,89339.0,0.5820325]
[1763584071708,0.06076799,89340.0,89339.0,0.4735925]
[1763584071903,0.01282,89340.0,89339.0,0.5820325]
[1763584073111,0.05857,89340.0,89339.0,0.5820325]
[1763584073510,0.06076799,89340.0,89339.0,0.4735925]
[1763584073701,0.06076799,89340.0,89339.0,0.5820325]
[1763584074204,0.01501799,89340.0,89339.0,0.5820325]
[1763584074406,0.01282,89342.0,89340.0,0.112058]
[1763584074711,0.01501799,89342.0,89341.0,0.0007327]
[1763584074911,0.06076799,89342.0,89341.0,0.1091727]
[1763584075910,0.05857,89342.0,89341.0,0.1091727]
[1763584076213,0.05857,89353.0,89352.0,0.1120435]
[1763584076417,0.06076799,89353.0,89352.0,0.1127762]
[1763584077911,0.06076799,89353.0,89352.0,0.0007327]
[1763584078417,0.04575,89352.0,89351.0,0.1120442]
[1763584078719,0.04794803,89352.0,89351.0,0.1120442]
[1763584078908,0.04794803,89352.0,89351.0,0.1345442]
[1763584079107,0.04794803,89352.0,89351.0,0.4953442]
[1763584079303,0.04794803,89352.0,89351.0,0.5170842]
[1763584079612,0.04794803,89352.0,89351.0,0.4728442]
[1763584080117,0.04794803,89352.0,89351.0,0.5170842]
[1763584080320,0.04794803,89352.0,89351.0,0.4953442]
[1763584080509,0.04794803,89352.0,89351.0,0.5170842]
[1763584081020,0.05913,89360.0,89359.0,0.1562747]
[1763584081213,0.06132803,89360.0,89359.0,0.1562747]
[1763584081519,0.00219803,89360.0,89359.0,0.1562747]
[1763584082016,0.04405975,89366.0,89365.0,0.04463]
[1763584082312,0.04378,89364.0,89363.0,0.1120297]
[1763584082511,0.04378,89364.0,89359.0,0.3608]
[1763584082512,0.05712,89360.0,89359.0,0.3608]
[1763584082713,0.06031803,89360.0,89359.0,0.40543]
[1763584082907,0.00319803,89360.0,89359.0,0.40543]
[1763584083108,0.001,89360.0,89359.0,0.40543]
[1763584084116,0.001,89360.0,89359.0,0.51387]
[1763584084312,0.00027975,89366.0,89365.0,0.1566572]
[1763584084313,0.04405975,89366.0,89365.0,0.1566572]
[1763584084521,0.04625778,89366.0,89365.0,0.1566572]
[1763584084717,0.00247778,89366.0,89365.0,0.1566572]
[1763584085207,0.00027975,89366.0,89365.0,0.1566572]
[1763584085812,0.00127975,89366.0,89365.0,0.1566572]
[1763584088220,0.0566,89380.0,89379.0,0.1566396]
[1763584088530,0.0566,89390.0,89389.0,0.1119971]
[1763584088731,0.05879803,89390.0,89389.0,0.1119971]
[1763584089022,0.05879803,89390.0,89389.0,0.1566271]
[1763584089229,0.05931803,89390.0,89389.0,0.1566271]
[1763584090322,0.05931803,89390.0,89389.0,0.1344771]
[1763584091215,0.05931803,89390.0,89389.0,0.1119971]
[1763584092119,0.04378,89388.0,89387.0,0.3608]
[1763584092313,0.04597803,89388.0,89387.0,0.3608]
[1763584092518,0.04597803,89388.0,89378.0,0.3608]
[1763584092519,0.01334,89380.0,89378.0,0.3608]
[1763584092722,0.04597803,89379.0,89378.0,0.4728109]
[1763584093826,0.04597803,89379.0,89378.0,0.5174409]
[1763584097319,0.04597803,89379.0,89370.0,0.3608]
[1763584097320,0.04378,89372.0,89371.0,0.02264789]
[1763584097517,0.04597803,89372.0,89371.0,0.00016789]
[1763584097921,0.155811,89362.0,89361.0,0.3608]
[1763584098224,0.01334,89361.0,89358.0,0.112035]
[1763584098426,0.04597803,89359.0,89358.0,0.112035]
[1763584098624,0.04378,89353.0,89352.0,0.1566735]
[1763584098825,0.04597803,89353.0,89352.0,0.1566735]
[1763584100127,0.04597803,89353.0,89352.0,0.1576735]
[1763584100721,0.04597803,89353.0,89352.0,0.1566735]
[1763584100922,0.04597803,89353.0,89352.0,0.1576735]
[1763584102517,0.04597803,89353.0,89352.0,0.001]
[1763584102722,0.40677803,89353.0,89352.0,0.001]
[1763584104018,0.1558323,89345.0,89344.0,0.00016789]
[1763584104331,0.51883033,89345.0,89344.0,0.00016789]
[1763584104726,0.1558498,89331.0,89330.0,0.3608]
[1763584104930,0.04597803,89331.0,89330.0,0.40543]
[1763584105229,0.04597803,89331.0,89330.0,0.3608]
[1763584107427,0.1561548,89327.0,89326.0,0.00027988]
[1763584107619,0.04627803,89327.0,89326.0,0.11235598]
[1763584107822,0.04627803,89327.0,89326.0,0.00027988]
[1763584108419,0.04627803,89327.0,89326.0,0.11235598]
[1763584109230,0.04627803,89327.0,89326.0,0.15730598]
[1763584109623,0.04627803,89327.0,89326.0,0.11235598]
[1763584110423,0.04627803,89327.0,89326.0,0.15730598]
[1763584110618,0.04627803,89327.0,89326.0,0.13448598]
[1763584110819,0.05742,89334.0,89333.0,0.1570173]
[1763584111022,0.00219803,89334.0,89333.0,0.1570173]
[1763584111223,0.04627803,89334.0,89333.0,0.1570173]
[1763584112028,0.05671,89330.0,89329.0,0.3608]
[1763584112225,0.05890803,89330.0,89329.0,0.3608]
[1763584116124,0.05890803,89330.0,89329.0,0.40596]
[1763584116530,0.02492803,89330.0,89329.0,0.40596]
[1763584116733,0.05890803,89330.0,89329.0,0.40596]
[1763584117138,0.00016789,89339.0,89338.0,0.157221]
[1763584117838,0.00016789,89339.0,89338.0,0.518021]
[1763584120334,0.04410789,89339.0,89338.0,0.518021]
[1763584120535,0.02289789,89339.0,89338.0,0.518021]
[1763584121243,0.02509592,89339.0,89338.0,0.518021]
[1763584121737,0.00236592,89339.0,89338.0,0.518021]
[1763584121942,0.00016789,89339.0,89338.0,0.518021]
[1763584122128,0.04410789,89339.0,89338.0,0.518021]
[1763584122328,0.02509592,89339.0,89338.0,0.518021]
[1763584122735,0.00016789,89339.0,89338.0,0.518021]
[1763584123641,0.04410789,89339.0,89338.0,0.518021]
[1763584123845,0.04630592,89339.0,89338.0,0.518021]
[1763584124437,0.04630592,89339.0,89338.0,0.157221]
[1763584125037,0.04630592,89339.0,89330.0,0.5180311]
[1763584125038,0.04394,89331.0,89330.0,0.5180311]
[1763584125240,0.04613803,89331.0,89330.0,0.3608]
[1763584126246,0.04613803,89331.0,89330.0,0.38334]
[1763584126545,0.04613803,89331.0,89330.0,0.40596]
[1763584126953,0.04613803,89331.0,89330.0,0.3608]
[1763584127138,0.04394,89327.0,89326.0,0.02281988]
[1763584127338,0.04613803,89327.0,89326.0,0.04543988]
[1763584128245,0.51901283,89327.0,89326.0,0.00027988]
[1763584128843,0.40693803,89327.0,89326.0,0.00027988]
[1763584129043,0.04613803,89327.0,89326.0,0.02281988]
[1763584129244,0.04613803,89327.0,89326.0,0.04543988]
[1763584130244,0.00219803,89327.0,89326.0,0.04543988]
[1763584130746,0.00016789,89339.0,89338.0,0.157221]
[1763584130941,0.02509592,89339.0,89338.0,0.157221]
[1763584131137,0.04630592,89339.0,89338.0,0.157221]
[1763584131342,0.00236592,89339.0,89338.0,0.157221]
[1763584132244,0.00016789,89339.0,89338.0,0.157221]
[1763584132845,0.10844,89347.0,89346.0,0.157211]
[1763584133150,0.11063803,89347.0,89346.0,0.157211]
[1763584134445,0.00219803,89347.0,89346.0,0.157211]
[1763584134651,0.04613803,89347.0,89346.0,0.157211]
[1763584135148,0.04410719,89355.0,89354.0,0.04516]
[1763584135351,0.02509522,89355.0,89354.0,0.04516]
[1763584135547,0.00236522,89355.0,89354.0,0.04516]
[1763584135946,0.04630522,89355.0,89354.0,0.04516]
[1763584136651,0.04394,89347.0,89346.0,0.00016789]
[1763584136862,0.04613803,89347.0,89346.0,0.00016789]
[1763584138854,0.04613803,89347.0,89346.0,0.11221889]
[1763584139260,0.04613803,89347.0,89346.0,0.00016789]
[1763584140949,0.1559998,89339.0,89338.0,0.3608]
[1763584141153,0.05671,89330.0,89329.0,0.1120723]
[1763584141353,0.05890803,89330.0,89329.0,0.1346123]
[1763584141556,0.00219803,89330.0,89329.0,0.1572323]
[1763584141966,0.06173803,89330.0,89329.0,0.1572323]
[1763584143261,0.00219803,89330.0,89329.0,0.1572323]
[1763584143570,0.1084,89340.0,89339.0,0.1549298]
[1763584143759,0.41864,89350.0,89349.0,0.1120472]
[1763584144066,0.52923803,89350.0,89349.0,0.1120472]
[1763584144456,0.37576803,89350.0,89349.0,0.04287]
[1763584144764,0.42083803,89350.0,89349.0,0.04287]
[1763584145669,0.06003803,89350.0,89349.0,0.04287]
[1763584146372,0.00219803,89350.0,89349.0,0.04287]
[1763584146558,0.00016719,89355.0,89354.0,0.04287]
[1763584146765,0.00236522,89355.0,89354.0,0.04287]
[1763584147074,0.00236522,89355.0,89354.0,0.154911]
[1763584147565,0.00016719,89355.0,89354.0,0.154911]
[1763584148266,0.01365,89370.0,89369.0,0.1334422]
[1763584148465,0.06091803,89370.0,89369.0,0.1548922]
[1763584150660,0.00219803,89370.0,89369.0,0.1548922]
[1763584151467,0.04523789,89378.0,89377.0,0.1548821]
[1763584151663,0.04743592,89378.0,89377.0,0.5156821]
[1763584152365,0.00236592,89378.0,89377.0,0.5156821]
[1763584152770,0.04743592,89378.0,89377.0,0.40367]
[1763584153969,0.04743592,89378.0,89377.0,0.3608]
[1763584154172,0.04743592,89378.0,89365.0,0.3608]
[1763584154173,0.00236592,89378.0,89373.0,0.1120164]
[1763584154475,0.04507,89374.0,89373.0,0.1120164]
[1763584154677,0.04726803,89374.0,89373.0,0.1120164]
[1763584154862,0.04726803,89374.0,89373.0,0.1548864]
[1763584155067,0.04726803,89374.0,89373.0,0.04287]
[1763584155263,0.04726803,89374.0,89373.0,0.02142]
[1763584155563,0.04726803,89374.0,89367.0,0.1120236]
[1763584155564,0.04507,89368.0,89367.0,0.1548936]
[1763584155762,0.04726803,89368.0,89367.0,0.1548936]
[1763584156084,0.04726803,89368.0,89367.0,0.02142]
[1763584156270,0.04507,89366.0,89365.0,0.4728268]
[1763584156470,0.04726803,89366.0,89365.0,0.4728268]
[1763584157375,0.157101,89362.0,89361.0,0.00016789]
[1763584157563,0.15929903,89362.0,89361.0,0.00016789]
[1763584158163,0.04726803,89362.0,89361.0,0.00016789]
[1763584158372,0.00219803,89362.0,89361.0,0.04303789]
[1763584159272,0.13027,89370.0,89369.0,0.04287]
[1763584159573,0.11055803,89370.0,89369.0,0.5156922]
[1763584159771,0.10836,89370.0,89369.0,0.5156922]
[1763584160162,0.01365,89380.0,89377.0,0.1120121]
[1763584160385,0.01365,89380.0,89377.0,0.5156821]
[1763584160386,0.02427592,89378.0,89377.0,0.5156821]
[1763584160878,0.04743592,89378.0,89377.0,0.5156821]
[1763584161679,0.05608,89383.0,89377.0,0.47501013]
[1763584161871,0.04507,89395.0,89394.0,0.04287]
[1763584162069,0.04580267,89395.0,89394.0,0.00219803]
[1763584162269,0.04580267,89395.0,89394.0,0.13560883]
[1763584162569,0.04580267,89395.0,89394.0,0.15705883]
[1763584163371,0.00073267,89395.0,89394.0,0.15705883]
[1763584163780,0.04580267,89395.0,89394.0,0.15705883]
[1763584164273,0.04580267,89395.0,89394.0,0.04506803]
[1763584164478,0.04507,89387.0,89386.0,0.00016779]
[1763584164677,0.04580267,89387.0,89386.0,0.00016779]
[1763584165066,0.04580267,89387.0,89386.0,0.02378582]
[1763584165273,0.03556,89397.0,89396.0,0.02142]
[1763584165579,0.05945267,89397.0,89396.0,0.15705633]
[1763584166166,0.02264267,89397.0,89396.0,0.15705633]
[1763584166367,0.00073267,89397.0,89396.0,0.15705633]
[1763584167379,0.12228962,89406.0,89405.0,0.1566571]
[1763584167679,0.10937229,89406.0,89405.0,0.15885513]
[1763584168076,0.00101229,89406.0,89405.0,0.15885513]
[1763584168276,0.02354229,89406.0,89405.0,0.15885513]
[1763584168580,0.00101229,89406.0,89405.0,0.15885513]
[1763584169185,0.00027962,89406.0,89405.0,0.15885513]
[1763584170480,0.04623229,89406.0,89405.0,0.04687803]
[1763584170671,0.04623229,89406.0,89405.0,0.00219803]
[1763584170872,0.02269,89392.0,89391.0,0.04468]
[1763584171182,0.00101229,89406.0,89391.0,0.04468]
[1763584171183,0.00027962,89406.0,89399.0,0.1566646]
[1763584171487,0.02354229,89406.0,89405.0,0.04687803]
[1763584171869,0.04623229,89406.0,89405.0,0.04687803]
[1763584172072,0.04623229,89406.0,89405.0,0.00219803]
[1763584172871,0.02354229,89406.0,89405.0,0.04580803]
[1763584173076,0.04638229,89406.0,89405.0,0.04580803]
[1763584173675,0.02271,89393.0,89392.0,0.04361]
[1763584173982,0.01351,89400.0,89399.0,0.1555946]
[1763584173983,0.05906,89400.0,89399.0,0.1555946]
[1763584174183,0.05979267,89400.0,89399.0,0.15779263]
[1763584174684,0.00073267,89400.0,89399.0,0.51859263]
[1763584176079,0.00027962,89406.0,89405.0,0.1555871]
[1763584176383,0.00027962,89406.0,89405.0,0.15778513]
[1763584176584,0.10832,89421.0,89420.0,0.04361]
[1763584176783,0.10832,89421.0,89420.0,0.40660803]
[1763584177682,0.40635,89437.0,89436.0,0.1555483]
[1763584177882,0.40708267,89437.0,89436.0,0.15774633]
[1763584178783,0.38424267,89437.0,89436.0,0.15774633]
[1763584180788,0.40708267,89437.0,89436.0,0.04580803]
[1763584181186,0.04628267,89437.0,89436.0,0.04580803]
[1763584181491,0.04628267,89437.0,89436.0,0.15774633]
[1763584182988,0.02344267,89437.0,89436.0,0.15774633]
[1763584183592,0.04628267,89437.0,89436.0,0.04580803]
[1763584185182,0.04628267,89437.0,89436.0,0.15774633]
[1763584185880,0.04628267,89437.0,89436.0,0.00219803]
[1763584186082,0.40708267,89437.0,89436.0,0.00219803]
[1763584186493,0.04628267,89437.0,89436.0,0.04580803]
[1763584187888,0.00073267,89437.0,89436.0,0.04580803]
[1763584188387,0.04628267,89437.0,89436.0,0.04580803]
[1763584191690,0.04628267,89437.0,89436.0,0.02460803]
[1763584192186,0.04628267,89437.0,89436.0,0.00219803]
[1763584193198,0.04628267,89437.0,89436.0,0.04580803]
[1763584193699,0.04628267,89437.0,89436.0,0.02460803]
[1763584194593,0.04555,89431.0,89430.0,0.38321]
[1763584194902,0.04628267,89431.0,89430.0,0.51855383]
[1763584195601,0.00073267,89431.0,89430.0,0.51855383]
[1763584196185,0.05906,89442.0,89441.0,0.155542]
[1763584196390,0.05979267,89442.0,89441.0,0.51854003]
[1763584196692,0.00073267,89442.0,89441.0,0.51854003]
[1763584198198,0.05979267,89442.0,89441.0,0.51854003]
[1763584199089,0.01351,89450.0,89445.0,0.155537]
[1763584199090,0.0229895,89446.0,89445.0,0.155537]
[1763584199290,0.0002795,89446.0,89445.0,0.15773503]
[1763584200400,0.36551616,89457.0,89456.0,0.04361]
[1763584200401,0.05026616,89457.0,89456.0,0.04361]
[1763584200595,0.05099883,89457.0,89456.0,0.04580803]
[1763584200791,0.05099883,89457.0,89456.0,0.00219803]
[1763584201099,0.05099883,89457.0,89456.0,0.04580803]
[1763584201294,0.00544883,89457.0,89456.0,0.04580803]
[1763584201500,0.00471616,89457.0,89456.0,0.04580803]
[1763584202396,0.2665788,89468.0,89467.0,0.04573]
[1763584202693,0.1717382,89460.0,89459.0,0.00016769]
[1763584202888,0.17247087,89460.0,89459.0,0.00236572]
[1763584203090,0.17247087,89460.0,89459.0,0.00016769]
[1763584203292,0.0464,89440.0,89439.0,0.04573]
[1763584203590,0.04713267,89440.0,89439.0,0.02493803]
[1763584203796,0.04713267,89440.0,89439.0,0.04792803]
[1763584204594,0.04656703,89448.0,89447.0,0.04573]
[1763584204794,0.04656703,89448.0,89447.0,0.00219803]
[1763584205796,0.04656703,89448.0,89447.0,0.04792803]
[1763584206294,0.04656703,89448.0,89447.0,0.40872803]
[1763584207302,0.00016703,89448.0,89447.0,0.40872803]
[1763584207605,3e-08,89448.0,89447.0,0.40872803]
[1763584207802,0.04640003,89448.0,89447.0,0.40872803]
[1763584208102,0.04640003,89448.0,89447.0,0.38573803]
[1763584208295,0.04640003,89448.0,89447.0,0.40872803]
[1763584209097,3e-08,89448.0,89447.0,0.36299803]
[1763584210505,0.04640003,89448.0,89447.0,0.40872803]
[1763584210704,0.04640003,89448.0,89447.0,0.00219803]
[1763584210899,3e-08,89448.0,89447.0,0.00219803]
[1763584211094,0.04640003,89448.0,89447.0,0.00219803]
[1763584212008,0.04640003,89448.0,89447.0,0.04792803]
[1763584212309,0.04640003,89448.0,89447.0,0.02493803]
[1763584213113,0.04640003,89448.0,89447.0,0.04792803]
[1763584213309,0.04640003,89448.0,89447.0,0.00219803]
[1763584213516,0.04640003,89448.0,89447.0,0.02493803]
[1763584214205,0.04640003,89448.0,89447.0,0.36299803]
[1763584214407,0.04640003,89448.0,89447.0,0.00219803]
[1763584214613,0.04640003,89448.0,89447.0,0.02493803]
[1763584215001,0.04640003,89448.0,89447.0,0.00219803]
[1763584216910,0.0464,89432.0,89431.0,0.00016769]
[1763584217609,0.111952,89425.0,89405.0,0.03974002]
[1763584217804,0.02314,89409.0,89408.0,0.40653]
[1763584218005,0.0464,89418.0,89408.0,0.36299803]
[1763584218310,0.0464,89409.0,89408.0,0.52070133]
[1763584218511,0.0464,89409.0,89408.0,0.40872803]
[1763584218702,0.0464,89409.0,89408.0,0.38621103]
[1763584219705,0.00016769,89417.0,89408.0,0.38621103]
[1763584219706,0.00016769,89417.0,89416.0,0.1576933]
[1763584219907,0.00016769,89417.0,89416.0,0.40872803]
[1763584219908,0.02330769,89417.0,89416.0,0.40872803]
[1763584220110,0.04656769,89417.0,89416.0,0.40872803]
[1763584220513,0.04656769,89417.0,89416.0,0.38573803]
[1763584220704,0.00016769,89417.0,89416.0,0.40872803]
[1763584222210,0.13526969,89417.0,89416.0,0.40872803]
[1763584222405,0.15852969,89417.0,89416.0,0.40872803]
[1763584222609,0.15852969,89417.0,89416.0,0.36299803]
[1763584224504,0.15852969,89417.0,89400.0,0.27621713]
[1763584224505,0.1583721,89409.0,89408.0,0.3608]
[1763584224701,0.1583721,89409.0,89408.0,0.36299803]
[1763584225102,0.0464,89409.0,89408.0,0.40872803]
[1763584225413,0.0464,89409.0,89408.0,0.04792803]
[1763584225604,0.0464,89409.0,89408.0,0.00219803]
[1763584226208,0.0464,89409.0,89408.0,0.02493803]
[1763584226404,0.0464,89409.0,89408.0,0.00219803]
[1763584227004,0.0458,89407.0,89406.0,0.00027962]
[1763584228209,0.0458,89407.0,89406.0,0.00247765]
[1763584228815,0.0458,89407.0,89406.0,0.00027962]
[1763584230714,0.0458,89407.0,89400.0,0.01053769]
[1763584230911,0.0458,89393.0,89392.0,0.3608]
[1763584231110,0.0458,89393.0,89392.0,0.36299803]
[1763584231721,0.0458,89393.0,89392.0,0.38573803]
[1763584232109,0.1574221,89385.0,89384.0,0.00016779]
[1763584232907,0.1120159,89374.0,89373.0,0.3608]
[1763584233109,0.1537,89374.0,89373.0,0.3608]
[1763584233819,0.2657159,89374.0,89373.0,0.36299803]
[1763584234315,0.2657159,89374.0,89373.0,0.00219803]
[1763584234513,0.1537,89374.0,89373.0,0.11421523]
[1763584234911,0.1537,89374.0,89373.0,0.00219803]
[1763584237818,0.04542,89367.0,89366.0,0.62230565]
[1763584238415,0.04542,89367.0,89366.0,0.62450368]
[1763584238924,0.04542,89367.0,89366.0,0.00027975]
[1763584239115,0.04542,89367.0,89366.0,0.00247778]
[1763584239424,0.1574447,89367.0,89366.0,0.00247778]
[1763584239619,0.1574447,89367.0,89366.0,0.00027975]
[1763584240424,0.04542,89367.0,89354.0,0.1120402]
[1763584240623,0.04542,89351.0,89350.0,0.3608]
[1763584240822,0.15374,89351.0,89350.0,0.3608]
[1763584241417,0.15374,89351.0,89350.0,0.36299803]
[1763584241618,0.15385862,89351.0,89350.0,0.36299803]
[1763584241813,0.00011862,89351.0,89350.0,0.40606803]
[1763584243032,0.04553862,89351.0,89350.0,0.40606803]
[1763584243330,0.02224862,89351.0,89350.0,0.40706803]
[1763584243728,0.00011862,89351.0,89350.0,0.40706803]
[1763584243922,0.02224862,89351.0,89350.0,0.40706803]
[1763584244231,0.04553862,89351.0,89350.0,0.40806803]
[1763584246425,0.04553862,89351.0,89350.0,0.36499803]
[1763584246832,0.04553862,89351.0,89350.0,0.36299803]
[1763584247329,0.04542,89343.0,89342.0,0.00016779]
[1763584247520,0.04542,89343.0,89342.0,0.00236582]
[1763584248929,0.04542,89343.0,89342.0,0.04543582]
[1763584249229,0.15374,89343.0,89342.0,0.00236582]
[1763584249630,0.16666,89343.0,89342.0,0.00236582]
[1763584250033,0.16666,89343.0,89342.0,0.00016779]
[1763584252828,0.16666,89343.0,89342.0,0.00236582]
[1763584255838,0.05834,89343.0,89342.0,0.00236582]
[1763584256137,0.1667,89343.0,89342.0,0.00236582]
[1763584258734,0.1667,89343.0,89342.0,0.02343582]
[1763584260138,0.1667,89343.0,89342.0,0.00236582]
[1763584260332,0.1667,89343.0,89342.0,0.02343582]
[1763584260533,0.1667,89343.0,89342.0,0.00236582]
[1763584260831,0.1667,89343.0,89342.0,0.00016779]
[1763584261037,0.1249865,89334.0,89332.0,0.3608]
[1763584261234,0.26593068,89333.0,89332.0,0.3608]
[1763584261429,0.1574948,89327.0,89326.0,0.00027988]
[1763584261629,0.04542,89308.0,89307.0,0.04307]
[1763584261835,0.15389826,89308.0,89307.0,0.05869803]
[1763584263833,0.15389826,89308.0,89307.0,0.05969803]
[1763584264033,0.15389826,89308.0,89307.0,0.06069803]
[1763584264236,0.26599696,89308.0,89307.0,0.00419803]
[1763584264634,0.62679696,89308.0,89307.0,0.00419803]
[1763584265029,0.156195,89303.0,89302.0,0.00014501]
[1763584265539,0.1688087,89300.0,89299.0,2.9e-06]
[1763584265933,0.04409,89283.0,89282.0,0.3608]
[1763584266134,0.04409,89276.0,89275.0,0.1559489]
[1763584266334,0.04409,89276.0,89275.0,0.51894813]
[1763584266738,0.0441732,89276.0,89275.0,0.51894813]
[1763584266933,8.32e-05,89276.0,89275.0,0.51894813]
[1763584267740,8.32e-05,89276.0,89275.0,0.51994813]
[1763584269137,8.32e-05,89276.0,89275.0,0.52094813]
[1763584270048,0.0220532,89276.0,89275.0,0.51994813]
[1763584270353,0.0441732,89276.0,89275.0,0.52094813]
[1763584272042,8.32e-05,89276.0,89275.0,0.52094813]
[1763584272551,0.00016799,89284.0,89283.0,0.1559401]
[1763584272750,0.00016799,89284.0,89283.0,0.51893813]
[1763584273242,0.1084,89299.0,89298.0,0.1559212]
[1763584273447,0.00011323,89299.0,89298.0,0.15811923]
[1763584273750,0.00011323,89299.0,89298.0,0.17154923]
[1763584275444,0.00680799,89307.0,89306.0,0.1559112]
[1763584275748,0.00680799,89307.0,89306.0,0.15810923]
[1763584275946,0.02877799,89307.0,89306.0,0.15810923]